[Event "*** SCC Grand Prix: Titled Tuesday Blitz"]
[Site "Chess.com"]
[Date "2020.08.04"]
[Round "2"]
[White "djano"]
[Black "Oneofmyturns"]
[Result "1-0"]
[WhiteElo "2427"]
[BlackElo "2729"]
[TimeControl "180+1"]
[EndTime "14:00:52 PDT"]
[Termination "djano won by resignation"]

1. d4 {[%clk 0:03:00.9]} 1... Nf6 {[%clk 0:02:59.9]} 2. Nf3 {[%clk 0:02:59.9]}
2... d5 {[%clk 0:02:59.7]} 3. Bf4 {[%clk 0:02:59.5]} 3... e6 {[%clk 0:02:59.8]}
4. e3 {[%clk 0:02:58.7]} 4... Bd6 {[%clk 0:03:00.4]} 5. Ne5 {[%clk 0:02:56.9]}
5... Nfd7 {[%clk 0:02:54.8]} 6. Nd2 {[%clk 0:02:50.8]} 6... O-O {[%clk
0:02:26.9]} 7. Bg3 {[%clk 0:02:44.1]} 7... f6 {[%clk 0:02:24]} 8. Nd3 {[%clk
0:02:33]} 8... Bxg3 {[%clk 0:02:13.1]} 9. hxg3 {[%clk 0:02:32.6]} 9... Qe7
{[%clk 0:02:13.7]} 10. Nf4 {[%clk 0:02:26.3]} 10... g6 {[%clk 0:02:04.3]} 11.
Bd3 {[%clk 0:02:20.7]} 11... Qf7 {[%clk 0:01:41.7]} 12. Qg4 {[%clk 0:02:04.6]}
12... f5 {[%clk 0:01:39.9]} 13. Qh4 {[%clk 0:01:56.7]} 13... Nf6 {[%clk
0:01:29.5]} 14. Nf3 {[%clk 0:01:50.9]} 14... h5 {[%clk 0:01:23.3]} 15. Ne5
{[%clk 0:01:49.8]} 15... Qg7 {[%clk 0:01:20]} 16. Nexg6 {[%clk 0:01:46.7]} 16...
Rf7 {[%clk 0:01:18.1]} 17. Ne5 {[%clk 0:01:44.1]} 17... Re7 {[%clk 0:01:18.6]}
18. Nxh5 {[%clk 0:01:43.5]} 18... Nxh5 {[%clk 0:01:19.5]} 19. Qxh5 {[%clk
0:01:44]} 19... Nc6 {[%clk 0:01:20]} 20. Ng6 {[%clk 0:01:34.7]} 20... Re8 {[%clk
0:01:15.5]} 21. g4 {[%clk 0:01:13.4]} 21... fxg4 {[%clk 0:01:00.9]} 22. Ne5
{[%clk 0:01:07.4]} 22... Bd7 {[%clk 0:00:56.7]} 23. Nxd7 {[%clk 0:00:47.2]}
23... Qxd7 {[%clk 0:00:57.6]} 24. Qh8+ {[%clk 0:00:47.2]} 1-0

[Event "*** SCC Grand Prix: Titled Tuesday Blitz"]
[Site "Chess.com"]
[Date "2020.08.04"]
[Round "2"]
[White "YIYUKI"]
[Black "BernardoRoselli"]
[Result "1/2-1/2"]
[WhiteElo "2273"]
[BlackElo "2458"]
[TimeControl "180+1"]
[EndTime "14:01:05 PDT"]
[Termination "Game drawn by repetition"]

1. e4 {[%clk 0:03:00.9]} 1... e6 {[%clk 0:02:59.3]} 2. d4 {[%clk 0:02:59.7]}
2... d5 {[%clk 0:02:59.7]} 3. e5 {[%clk 0:02:59]} 3... c5 {[%clk 0:02:58.4]} 4.
c3 {[%clk 0:02:59.1]} 4... Nc6 {[%clk 0:02:55.5]} 5. Nf3 {[%clk 0:02:53.7]} 5...
Nge7 {[%clk 0:02:55.4]} 6. Na3 {[%clk 0:02:52.3]} 6... Nf5 {[%clk 0:02:54.2]} 7.
Nc2 {[%clk 0:02:50.8]} 7... Be7 {[%clk 0:02:54.2]} 8. Bd3 {[%clk 0:02:48.7]}
8... cxd4 {[%clk 0:02:52.7]} 9. Bxf5 {[%clk 0:02:48.5]} 9... exf5 {[%clk
0:02:52.2]} 10. cxd4 {[%clk 0:02:48.6]} 10... g5 {[%clk 0:02:48.7]} 11. O-O
{[%clk 0:02:42.6]} 11... f4 {[%clk 0:02:46]} 12. Nfe1 {[%clk 0:02:41.2]} 12...
Bf5 {[%clk 0:02:36.2]} 13. b4 {[%clk 0:02:27.9]} 13... a6 {[%clk 0:02:31.1]} 14.
Nd3 {[%clk 0:02:21.7]} 14... O-O {[%clk 0:02:24.8]} 15. Rb1 {[%clk 0:02:09.4]}
15... Rc8 {[%clk 0:02:23.1]} 16. Bb2 {[%clk 0:02:04.2]} 16... Kg7 {[%clk
0:02:07.7]} 17. Nc5 {[%clk 0:02:02.7]} 17... b6 {[%clk 0:02:00.5]} 18. Nxa6
{[%clk 0:01:58.7]} 18... Bxc2 {[%clk 0:01:56.3]} 19. Qxc2 {[%clk 0:01:58.4]}
19... Nxb4 {[%clk 0:01:56.5]} 20. Qe2 {[%clk 0:01:42.1]} 20... f3 {[%clk
0:01:56.3]} 21. gxf3 {[%clk 0:01:41.1]} 21... Rc2 {[%clk 0:01:54.6]} 22. Qb5
{[%clk 0:01:40.4]} 22... Nxa6 {[%clk 0:01:53.4]} 23. Qxa6 {[%clk 0:01:40.3]}
23... Qc7 {[%clk 0:01:42.9]} 24. Qd3 {[%clk 0:01:39.6]} 24... Rc8 {[%clk
0:01:41.7]} 25. f4 {[%clk 0:01:38.2]} 25... gxf4 {[%clk 0:01:36]} 26. Kh1 {[%clk
0:01:38.3]} 26... Kh8 {[%clk 0:01:35.4]} 27. Rg1 {[%clk 0:01:36.3]} 27... Qd7
{[%clk 0:01:25.1]} 28. Bc1 {[%clk 0:01:29.2]} 28... R8c3 {[%clk 0:01:13.6]} 29.
Qf1 {[%clk 0:01:23.3]} 29... Qf5 {[%clk 0:01:12.3]} 30. Qg2 {[%clk 0:01:22.1]}
30... Qe4 {[%clk 0:01:08.4]} 31. Bxf4 {[%clk 0:01:20.4]} 31... Rxf2 {[%clk
0:01:05.7]} 32. Qxe4 {[%clk 0:01:16.2]} 32... dxe4 {[%clk 0:01:06.3]} 33. Bh6
{[%clk 0:01:16.5]} 33... Rcc2 {[%clk 0:01:02.8]} 34. Bg7+ {[%clk 0:01:14.5]}
34... Kg8 {[%clk 0:01:02.5]} 35. Bh6+ {[%clk 0:01:14.6]} 35... Kh8 {[%clk
0:01:02.8]} 36. Bg7+ {[%clk 0:01:14.6]} 36... Kg8 {[%clk 0:01:03.7]} 37. Bh6+
{[%clk 0:01:05.2]} 37... Kh8 {[%clk 0:01:03.8]} 1/2-1/2

[Event "*** SCC Grand Prix: Titled Tuesday Blitz"]
[Site "Chess.com"]
[Date "2020.08.04"]
[Round "2"]
[White "MPGM"]
[Black "KuzubovYuriy"]
[Result "0-1"]
[WhiteElo "2539"]
[BlackElo "2842"]
[TimeControl "180+1"]
[EndTime "14:01:09 PDT"]
[Termination "KuzubovYuriy won by checkmate"]

1. d4 {[%clk 0:03:00.9]} 1... Nf6 {[%clk 0:02:59.7]} 2. c4 {[%clk 0:03:00.2]}
2... e6 {[%clk 0:03:00.3]} 3. Nf3 {[%clk 0:02:59.6]} 3... d5 {[%clk 0:03:00.6]}
4. g3 {[%clk 0:02:57.5]} 4... dxc4 {[%clk 0:02:59.9]} 5. Bg2 {[%clk 0:02:57]}
5... Bb4+ {[%clk 0:03:00.5]} 6. Bd2 {[%clk 0:02:55]} 6... a5 {[%clk 0:03:01]} 7.
O-O {[%clk 0:02:52.2]} 7... c6 {[%clk 0:02:58]} 8. Qc2 {[%clk 0:02:39.1]} 8...
b5 {[%clk 0:02:56.1]} 9. a3 {[%clk 0:02:30.1]} 9... Be7 {[%clk 0:02:48.3]} 10.
e4 {[%clk 0:02:20.9]} 10... Bb7 {[%clk 0:02:39.5]} 11. Nc3 {[%clk 0:02:01]}
11... O-O {[%clk 0:02:31.1]} 12. e5 {[%clk 0:02:00.6]} 12... Nd5 {[%clk
0:02:29]} 13. Ne4 {[%clk 0:02:00.2]} 13... h6 {[%clk 0:02:24.2]} 14. h4 {[%clk
0:01:56.6]} 14... Nd7 {[%clk 0:02:19.8]} 15. g4 {[%clk 0:01:14.8]} 15... c5
{[%clk 0:02:14.1]} 16. dxc5 {[%clk 0:01:08.7]} 16... Nxc5 {[%clk 0:02:12.6]} 17.
Nxc5 {[%clk 0:01:04.1]} 17... Bxc5 {[%clk 0:02:12.1]} 18. g5 {[%clk 0:01:04.2]}
18... h5 {[%clk 0:01:58.1]} 19. g6 {[%clk 0:00:58.1]} 19... f6 {[%clk
0:01:57.9]} 20. exf6 {[%clk 0:00:53.2]} 20... Qxf6 {[%clk 0:01:48.1]} 21. Rae1
{[%clk 0:00:36.1]} 21... Nf4 {[%clk 0:01:36.8]} 22. Bxf4 {[%clk 0:00:32.8]}
22... Qxf4 {[%clk 0:01:37.7]} 23. Ne5 {[%clk 0:00:18.4]} 23... Bd5 {[%clk
0:01:32.6]} 24. Qc1 {[%clk 0:00:13.1]} 24... Qg3 {[%clk 0:01:21.5]} 25. Qg5
{[%clk 0:00:10.9]} 25... Bxf2+ {[%clk 0:01:20.1]} 26. Kh1 {[%clk 0:00:10.5]}
26... Bxg2# {[%clk 0:01:18.9]} 0-1

[Event "*** SCC Grand Prix: Titled Tuesday Blitz"]
[Site "Chess.com"]
[Date "2020.08.04"]
[Round "2"]
[White "Bulldog167"]
[Black "allvim"]
[Result "1-0"]
[WhiteElo "2729"]
[BlackElo "2358"]
[TimeControl "180+1"]
[EndTime "14:01:11 PDT"]
[Termination "Bulldog167 won by resignation"]

1. d4 {[%clk 0:03:00.9]} 1... Nf6 {[%clk 0:02:55.8]} 2. c4 {[%clk 0:03:01.1]}
2... e6 {[%clk 0:02:54.6]} 3. Nf3 {[%clk 0:03:00.8]} 3... d5 {[%clk 0:02:54.3]}
4. Nc3 {[%clk 0:03:01.2]} 4... Be7 {[%clk 0:02:53.4]} 5. Bg5 {[%clk 0:03:01.3]}
5... a6 {[%clk 0:02:52.6]} 6. e3 {[%clk 0:03:01]} 6... O-O {[%clk 0:02:50.4]} 7.
Rc1 {[%clk 0:03:00.2]} 7... Nbd7 {[%clk 0:02:44]} 8. cxd5 {[%clk 0:02:56.1]}
8... exd5 {[%clk 0:02:43]} 9. Bd3 {[%clk 0:02:55.8]} 9... c6 {[%clk 0:02:42.8]}
10. O-O {[%clk 0:02:54.2]} 10... h6 {[%clk 0:02:41.5]} 11. Bh4 {[%clk
0:02:54.1]} 11... Ne4 {[%clk 0:02:26.8]} 12. Bxe7 {[%clk 0:02:52.1]} 12... Qxe7
{[%clk 0:02:27.7]} 13. Qc2 {[%clk 0:02:51.5]} 13... Ndf6 {[%clk 0:02:22.7]} 14.
Ne5 {[%clk 0:02:51.1]} 14... Nxc3 {[%clk 0:02:08]} 15. bxc3 {[%clk 0:02:52]}
15... Be6 {[%clk 0:01:55.6]} 16. f3 {[%clk 0:02:46.2]} 16... Nd7 {[%clk
0:01:54.1]} 17. Nxd7 {[%clk 0:02:45.5]} 17... Qxd7 {[%clk 0:01:53.8]} 18. e4
{[%clk 0:02:45.9]} 18... Rfe8 {[%clk 0:01:51.7]} 19. e5 {[%clk 0:02:43.4]} 19...
c5 {[%clk 0:01:47.5]} 20. f4 {[%clk 0:02:43.8]} 20... g6 {[%clk 0:01:47.8]} 21.
f5 {[%clk 0:02:42.3]} 21... gxf5 {[%clk 0:01:47.9]} 22. Bxf5 {[%clk 0:02:43.2]}
22... Bxf5 {[%clk 0:01:47.5]} 23. Rxf5 {[%clk 0:02:42.1]} 23... Re6 {[%clk
0:01:44.5]} 24. Rcf1 {[%clk 0:02:41.2]} 24... Rf8 {[%clk 0:01:43]} 25. Qd2
{[%clk 0:02:31.5]} 25... Rg6 {[%clk 0:01:42.1]} 26. dxc5 {[%clk 0:02:21.2]}
26... Qc6 {[%clk 0:01:35.6]} 27. Qf2 {[%clk 0:02:16.8]} 27... Qe6 {[%clk
0:01:21.6]} 28. h3 {[%clk 0:02:12.9]} 28... Kg7 {[%clk 0:01:12.1]} 29. Qd4
{[%clk 0:01:54]} 29... Re8 {[%clk 0:01:05.5]} 30. Rxf7+ {[%clk 0:01:44.1]} 30...
Qxf7 {[%clk 0:01:06.4]} 31. Rxf7+ {[%clk 0:01:44.5]} 31... Kxf7 {[%clk
0:01:07.3]} 32. Qxd5+ {[%clk 0:01:45.1]} 32... Rge6 {[%clk 0:01:07.1]} 33. Qxb7+
{[%clk 0:01:45.2]} 33... R8e7 {[%clk 0:01:07]} 34. Qf3+ {[%clk 0:01:38.1]} 34...
Ke8 {[%clk 0:01:06.7]} 35. Kh2 {[%clk 0:01:37.9]} 35... Rxe5 {[%clk 0:01:07.1]}
36. Qa8+ {[%clk 0:01:37.8]} 36... Kf7 {[%clk 0:01:07]} 37. Qxa6 {[%clk
0:01:38.7]} 37... Re2 {[%clk 0:01:06.4]} 38. Qxh6 {[%clk 0:01:36.8]} 38... Rf2
{[%clk 0:01:02.5]} 39. Qh7+ {[%clk 0:01:31]} 39... Ke8 {[%clk 0:01:00.9]} 40.
Qh8+ {[%clk 0:01:29.5]} 40... Kf7 {[%clk 0:00:56]} 41. Qh7+ {[%clk 0:01:26.5]}
41... Ke8 {[%clk 0:00:54]} 42. Qg8+ {[%clk 0:01:26.5]} 42... Kd7 {[%clk
0:00:53.2]} 43. Qd5+ {[%clk 0:01:25.6]} 43... Ke8 {[%clk 0:00:52.3]} 44. a4
{[%clk 0:01:24.2]} 44... Ree2 {[%clk 0:00:52.1]} 45. a5 {[%clk 0:01:23.6]} 1-0

[Event "*** SCC Grand Prix: Titled Tuesday Blitz"]
[Site "Chess.com"]
[Date "2020.08.04"]
[Round "2"]
[White "tan275"]
[Black "superchess02"]
[Result "0-1"]
[WhiteElo "2239"]
[BlackElo "2710"]
[TimeControl "180+1"]
[EndTime "14:01:12 PDT"]
[Termination "superchess02 won by resignation"]

1. d4 {[%clk 0:03:00.9]} 1... Nf6 {[%clk 0:02:58.1]} 2. c4 {[%clk 0:03:01.4]}
2... e6 {[%clk 0:02:59]} 3. g3 {[%clk 0:03:01.4]} 3... c5 {[%clk 0:02:58.3]} 4.
d5 {[%clk 0:03:00.8]} 4... b5 {[%clk 0:02:57.8]} 5. Bg2 {[%clk 0:02:56.7]} 5...
exd5 {[%clk 0:02:47.3]} 6. cxd5 {[%clk 0:02:55.7]} 6... d6 {[%clk 0:02:47.3]} 7.
e4 {[%clk 0:02:49.9]} 7... g6 {[%clk 0:02:46.9]} 8. Ne2 {[%clk 0:02:45.7]} 8...
Bg7 {[%clk 0:02:47.4]} 9. O-O {[%clk 0:02:45.7]} 9... O-O {[%clk 0:02:48.3]} 10.
a4 {[%clk 0:02:38.7]} 10... Re8 {[%clk 0:02:46.3]} 11. axb5 {[%clk 0:02:20]}
11... Nxe4 {[%clk 0:02:45.7]} 12. Ra4 {[%clk 0:02:19.7]} 12... Bf5 {[%clk
0:02:40.7]} 13. Nbc3 {[%clk 0:02:08]} 13... Nxc3 {[%clk 0:02:39.3]} 14. Nxc3
{[%clk 0:02:07.6]} 14... Nd7 {[%clk 0:02:34.8]} 15. Ra6 {[%clk 0:01:57.9]} 15...
Nb6 {[%clk 0:02:32.8]} 16. Bf4 {[%clk 0:01:50.5]} 16... Bc8 {[%clk 0:02:32]} 17.
Ra2 {[%clk 0:01:44.9]} 17... a6 {[%clk 0:02:32.5]} 18. Ne4 {[%clk 0:01:29.1]}
18... Be5 {[%clk 0:02:18]} 19. Bxe5 {[%clk 0:01:24.3]} 19... Rxe5 {[%clk
0:02:18.9]} 20. Re1 {[%clk 0:01:14.5]} 20... axb5 {[%clk 0:02:05.6]} 21. Rxa8
{[%clk 0:01:11.9]} 21... Nxa8 {[%clk 0:02:06.5]} 22. f4 {[%clk 0:00:50.8]} 22...
Re7 {[%clk 0:02:05.9]} 23. Qd3 {[%clk 0:00:21.8]} 23... f5 {[%clk 0:01:54]} 24.
Nf6+ {[%clk 0:00:20.5]} 24... Kg7 {[%clk 0:01:54.4]} 25. Rxe7+ {[%clk
0:00:14.9]} 25... Qxe7 {[%clk 0:01:55.3]} 26. Qxb5 {[%clk 0:00:10.3]} 26... Kxf6
{[%clk 0:01:45.5]} 27. Qb8 {[%clk 0:00:08]} 27... Qe3+ {[%clk 0:01:40.5]} 28.
Kf1 {[%clk 0:00:05.9]} 28... Ba6+ {[%clk 0:01:40]} 0-1

[Event "*** SCC Grand Prix: Titled Tuesday Blitz"]
[Site "Chess.com"]
[Date "2020.08.04"]
[Round "2"]
[White "BlueWizzard"]
[Black "Jenia84"]
[Result "1-0"]
[WhiteElo "2700"]
[BlackElo "2357"]
[TimeControl "180+1"]
[EndTime "14:01:20 PDT"]
[Termination "BlueWizzard won by resignation"]

1. d4 {[%clk 0:03:00.9]} 1... Nf6 {[%clk 0:02:59.6]} 2. Nc3 {[%clk 0:03:01.3]}
2... d5 {[%clk 0:02:53.2]} 3. Bf4 {[%clk 0:03:01.2]} 3... e6 {[%clk 0:02:51.5]}
4. a3 {[%clk 0:03:00.9]} 4... c5 {[%clk 0:02:51.6]} 5. e3 {[%clk 0:03:01.3]}
5... Nc6 {[%clk 0:02:51.7]} 6. Nb5 {[%clk 0:03:01.5]} 6... e5 {[%clk 0:02:07.4]}
7. Bxe5 {[%clk 0:02:52.3]} 7... Nxe5 {[%clk 0:02:03.8]} 8. dxe5 {[%clk
0:02:53.2]} 8... a6 {[%clk 0:01:13.2]} 9. exf6 {[%clk 0:02:51.8]} 9... axb5
{[%clk 0:01:13.3]} 10. Bxb5+ {[%clk 0:02:47.6]} 10... Bd7 {[%clk 0:01:13.5]} 11.
Qxd5 {[%clk 0:01:54.6]} 11... Qa5+ {[%clk 0:00:57.5]} 12. b4 {[%clk 0:01:54.6]}
12... Qxb5 {[%clk 0:00:57.3]} 13. Qe5+ {[%clk 0:01:52.3]} 13... Be6 {[%clk
0:00:47.6]} 14. fxg7 {[%clk 0:01:51.3]} 14... Bxg7 {[%clk 0:00:45.1]} 15. Qxg7
{[%clk 0:01:52.2]} 15... O-O-O {[%clk 0:00:41]} 16. Qc3 {[%clk 0:01:48.3]} 16...
Rhg8 {[%clk 0:00:20.5]} 17. Ne2 {[%clk 0:01:35.8]} 17... Rxg2 {[%clk 0:00:18.9]}
18. Nd4 {[%clk 0:01:27.3]} 18... Rxd4 {[%clk 0:00:17]} 19. exd4 {[%clk
0:01:24.3]} 19... b6 {[%clk 0:00:17.4]} 20. bxc5 {[%clk 0:01:22.9]} 20... Bc4
{[%clk 0:00:15.6]} 21. a4 {[%clk 0:01:16.6]} 21... Qe8+ {[%clk 0:00:15.2]} 22.
Qe3 {[%clk 0:01:16.7]} 22... Qc6 {[%clk 0:00:11.3]} 23. O-O-O {[%clk 0:01:13.6]}
23... Rg6 {[%clk 0:00:10.4]} 24. Rhe1 {[%clk 0:01:11.9]} 24... Re6 {[%clk
0:00:10]} 25. Qa3 {[%clk 0:01:10]} 1-0

[Event "*** SCC Grand Prix: Titled Tuesday Blitz"]
[Site "Chess.com"]
[Date "2020.08.04"]
[Round "2"]
[White "shnitez"]
[Black "VitaliyBernadskiy"]
[Result "0-1"]
[WhiteElo "2486"]
[BlackElo "2759"]
[TimeControl "180+1"]
[EndTime "14:01:21 PDT"]
[Termination "VitaliyBernadskiy won by resignation"]

1. c4 {[%clk 0:03:00.9]} 1... Nf6 {[%clk 0:02:56.6]} 2. Nc3 {[%clk 0:02:54.4]}
2... g6 {[%clk 0:02:56.2]} 3. e4 {[%clk 0:02:53.6]} 3... d6 {[%clk 0:02:56]} 4.
d4 {[%clk 0:02:53.6]} 4... Bg7 {[%clk 0:02:56.2]} 5. Nf3 {[%clk 0:02:52.5]} 5...
O-O {[%clk 0:02:56.5]} 6. Be2 {[%clk 0:02:51.8]} 6... c6 {[%clk 0:02:55.9]} 7.
O-O {[%clk 0:02:50.4]} 7... e5 {[%clk 0:02:56.3]} 8. d5 {[%clk 0:02:46.2]} 8...
Na6 {[%clk 0:02:54.6]} 9. Qc2 {[%clk 0:02:28.4]} 9... cxd5 {[%clk 0:02:51.3]}
10. cxd5 {[%clk 0:02:27.4]} 10... Bd7 {[%clk 0:02:51.7]} 11. a3 {[%clk
0:02:20.7]} 11... Rc8 {[%clk 0:02:51.2]} 12. Be3 {[%clk 0:02:12.7]} 12... Nc5
{[%clk 0:02:46.8]} 13. Nd2 {[%clk 0:02:08.3]} 13... Na4 {[%clk 0:02:46.6]} 14.
Qb3 {[%clk 0:01:56.9]} 14... Nxc3 {[%clk 0:02:45.5]} 15. bxc3 {[%clk 0:01:57.8]}
15... b6 {[%clk 0:02:41.8]} 16. a4 {[%clk 0:01:55.2]} 16... Ng4 {[%clk
0:02:31.9]} 17. Bxg4 {[%clk 0:01:51.7]} 17... Bxg4 {[%clk 0:02:32.8]} 18. f3
{[%clk 0:01:50.5]} 18... Bd7 {[%clk 0:02:32.2]} 19. a5 {[%clk 0:01:48.7]} 19...
bxa5 {[%clk 0:02:32.5]} 20. Bxa7 {[%clk 0:01:44.5]} 20... a4 {[%clk 0:02:31.1]}
21. Qb4 {[%clk 0:01:33.3]} 21... Bh6 {[%clk 0:02:30.7]} 22. Ra2 {[%clk
0:01:20.9]} 22... Qc7 {[%clk 0:02:25.5]} 23. Bb6 {[%clk 0:01:11.9]} 23... Qxc3
{[%clk 0:02:25]} 24. Qxd6 {[%clk 0:01:12]} 24... Bb5 {[%clk 0:02:23.7]} 25. Rd1
{[%clk 0:00:17.9]} 25... Qd3 {[%clk 0:01:37.6]} 26. Qxe5 {[%clk 0:00:14.8]}
26... Qe2 {[%clk 0:01:37.3]} 27. Rb1 {[%clk 0:00:10.2]} 27... Bxd2 {[%clk
0:01:34]} 28. Bd4 {[%clk 0:00:10.1]} 28... Be3+ {[%clk 0:01:32.5]} 29. Kh1
{[%clk 0:00:08.1]} 29... Bxd4 {[%clk 0:01:31]} 30. Qxd4 {[%clk 0:00:09]} 30...
Qxa2 {[%clk 0:01:29.8]} 31. Ra1 {[%clk 0:00:03.2]} 31... Qc2 {[%clk 0:01:26.1]}
0-1

[Event "*** SCC Grand Prix: Titled Tuesday Blitz"]
[Site "Chess.com"]
[Date "2020.08.04"]
[Round "2"]
[White "BlackBoarder"]
[Black "Beca95"]
[Result "0-1"]
[WhiteElo "2571"]
[BlackElo "2882"]
[TimeControl "180+1"]
[EndTime "14:01:31 PDT"]
[Termination "Beca95 won on time"]

1. e4 {[%clk 0:02:59.7]} 1... d6 {[%clk 0:03:00.1]} 2. d4 {[%clk 0:02:59.5]}
2... Nf6 {[%clk 0:03:00.7]} 3. Nc3 {[%clk 0:02:58.9]} 3... Nbd7 {[%clk
0:03:01.1]} 4. Nf3 {[%clk 0:02:57.2]} 4... e5 {[%clk 0:03:01.1]} 5. Bc4 {[%clk
0:02:57.6]} 5... Be7 {[%clk 0:03:00.5]} 6. O-O {[%clk 0:02:57.1]} 6... c6 {[%clk
0:03:00.7]} 7. a4 {[%clk 0:02:56.6]} 7... h6 {[%clk 0:03:01]} 8. Re1 {[%clk
0:02:52.3]} 8... Qc7 {[%clk 0:03:00.9]} 9. h3 {[%clk 0:02:51.4]} 9... g5 {[%clk
0:02:59.7]} 10. Nh2 {[%clk 0:02:26.4]} 10... Nf8 {[%clk 0:02:59.3]} 11. Nf1
{[%clk 0:02:22.6]} 11... g4 {[%clk 0:02:57.6]} 12. h4 {[%clk 0:02:21.5]} 12...
Ng6 {[%clk 0:02:48.1]} 13. g3 {[%clk 0:02:15.1]} 13... exd4 {[%clk 0:02:47.4]}
14. Qxd4 {[%clk 0:02:10.7]} 14... Ne5 {[%clk 0:02:47.8]} 15. Be2 {[%clk
0:02:10.3]} 15... Be6 {[%clk 0:02:29.9]} 16. Bf4 {[%clk 0:01:55]} 16... Nfd7
{[%clk 0:02:22.6]} 17. Ne3 {[%clk 0:01:27.2]} 17... Qb6 {[%clk 0:02:20.4]} 18.
Qxb6 {[%clk 0:01:16]} 18... axb6 {[%clk 0:02:21.3]} 19. Rad1 {[%clk 0:01:10.2]}
19... h5 {[%clk 0:02:20.1]} 20. Nf5 {[%clk 0:00:50.5]} 20... Bxf5 {[%clk
0:02:19.3]} 21. exf5 {[%clk 0:00:50.7]} 21... f6 {[%clk 0:02:19.6]} 22. b3
{[%clk 0:00:43.1]} 22... d5 {[%clk 0:02:19.6]} 23. Kg2 {[%clk 0:00:25.9]} 23...
Kf7 {[%clk 0:02:12.8]} 24. Be3 {[%clk 0:00:20.4]} 24... Bb4 {[%clk 0:02:11.2]}
25. Bd2 {[%clk 0:00:20.5]} 25... Bc5 {[%clk 0:02:11]} 26. Na2 {[%clk 0:00:12.8]}
26... b5 {[%clk 0:02:05.8]} 27. b4 {[%clk 0:00:12.5]} 27... Bf8 {[%clk
0:01:56.9]} 28. a5 {[%clk 0:00:12.1]} 28... Nb8 {[%clk 0:01:50.8]} 29. Nc1
{[%clk 0:00:09.6]} 29... Na6 {[%clk 0:01:50]} 30. c3 {[%clk 0:00:09.8]} 30...
Nc7 {[%clk 0:01:44.7]} 31. Nd3 {[%clk 0:00:09.6]} 31... Ne8 {[%clk 0:01:43.6]}
32. Bf4 {[%clk 0:00:07.5]} 32... Nc4 {[%clk 0:01:42.8]} 33. Bf1 {[%clk
0:00:05.4]} 33... Bd6 {[%clk 0:01:41.7]} 34. Re6 {[%clk 0:00:04.2]} 34... Bxf4
{[%clk 0:01:37.7]} 35. Nxf4 {[%clk 0:00:05.1]} 35... Ng7 {[%clk 0:01:37.7]} 36.
Rde1 {[%clk 0:00:01.8]} 36... Ne5 {[%clk 0:01:34.1]} 0-1

[Event "*** SCC Grand Prix: Titled Tuesday Blitz"]
[Site "Chess.com"]
[Date "2020.08.04"]
[Round "2"]
[White "ftorodent"]
[Black "Parhamov"]
[Result "0-1"]
[WhiteElo "2661"]
[BlackElo "3020"]
[TimeControl "180+1"]
[EndTime "14:01:55 PDT"]
[Termination "Parhamov won by resignation"]

1. d4 {[%clk 0:03:00.9]} 1... Nf6 {[%clk 0:02:59]} 2. c4 {[%clk 0:03:00.8]} 2...
g6 {[%clk 0:02:59.2]} 3. Nc3 {[%clk 0:02:58.5]} 3... d5 {[%clk 0:02:58.5]} 4.
Nf3 {[%clk 0:02:58.5]} 4... Bg7 {[%clk 0:02:57.4]} 5. cxd5 {[%clk 0:02:58.7]}
5... Nxd5 {[%clk 0:02:57.3]} 6. Bg5 {[%clk 0:02:59.3]} 6... h6 {[%clk
0:02:47.9]} 7. Bh4 {[%clk 0:02:57.7]} 7... c5 {[%clk 0:02:48.2]} 8. Rc1 {[%clk
0:02:55.6]} 8... Nc6 {[%clk 0:02:38.2]} 9. Nxd5 {[%clk 0:02:51.6]} 9... Qxd5
{[%clk 0:02:39.1]} 10. Rxc5 {[%clk 0:02:51.6]} 10... Qxa2 {[%clk 0:02:38.4]} 11.
Qc1 {[%clk 0:02:51.8]} 11... O-O {[%clk 0:02:33.7]} 12. e3 {[%clk 0:02:51.3]}
12... Be6 {[%clk 0:02:31.3]} 13. Bc4 {[%clk 0:02:37.3]} 13... Bxc4 {[%clk
0:02:27.5]} 14. Rxc4 {[%clk 0:02:37.3]} 14... e6 {[%clk 0:02:24.5]} 15. O-O
{[%clk 0:02:33.7]} 15... Rac8 {[%clk 0:02:22.7]} 16. Rc3 {[%clk 0:02:12.2]}
16... a6 {[%clk 0:02:11.5]} 17. Qd2 {[%clk 0:01:58.3]} 17... Qd5 {[%clk
0:02:07.4]} 18. Rc5 {[%clk 0:01:53.1]} 18... Qd7 {[%clk 0:02:05.5]} 19. Rfc1
{[%clk 0:01:52.4]} 19... Rfe8 {[%clk 0:02:02.5]} 20. h3 {[%clk 0:01:46.5]} 20...
Na7 {[%clk 0:01:58.6]} 21. Bg3 {[%clk 0:01:37.5]} 21... Rxc5 {[%clk 0:01:57]}
22. Rxc5 {[%clk 0:01:37.6]} 22... Rc8 {[%clk 0:01:57.3]} 23. Qc3 {[%clk
0:01:37.4]} 23... Rxc5 {[%clk 0:01:55.6]} 24. Qxc5 {[%clk 0:01:37.6]} 24... Nc6
{[%clk 0:01:54.4]} 25. Qb6 {[%clk 0:01:35.6]} 25... Ne7 {[%clk 0:01:50.3]} 26.
Ne5 {[%clk 0:01:30.2]} 26... Qc8 {[%clk 0:01:47.3]} 27. Nd3 {[%clk 0:01:18.2]}
27... Nd5 {[%clk 0:01:47.1]} 28. Qb3 {[%clk 0:01:17.8]} 28... b5 {[%clk
0:01:46.7]} 29. Bd6 {[%clk 0:01:13.5]} 29... Qc6 {[%clk 0:01:41.1]} 30. Bc5
{[%clk 0:01:09.7]} 30... a5 {[%clk 0:01:41]} 31. Qd1 {[%clk 0:00:55.2]} 31... a4
{[%clk 0:01:38.4]} 32. Qf3 {[%clk 0:00:54.2]} 32... Qd7 {[%clk 0:01:34.9]} 33.
Qe4 {[%clk 0:00:49.1]} 33... Qc8 {[%clk 0:01:33.2]} 34. g4 {[%clk 0:00:42.1]}
34... Qb8 {[%clk 0:01:30.7]} 35. Nb4 {[%clk 0:00:35.6]} 35... Nxb4 {[%clk
0:01:28.6]} 36. Bxb4 {[%clk 0:00:35.5]} 36... Bf8 {[%clk 0:01:28.2]} 37. Bc5
{[%clk 0:00:33.2]} 37... b4 {[%clk 0:01:26.5]} 38. Qc6 {[%clk 0:00:25.3]} 38...
a3 {[%clk 0:01:21.3]} 39. bxa3 {[%clk 0:00:19.9]} 39... bxa3 {[%clk 0:01:15]}
40. Bxf8 {[%clk 0:00:18.4]} 40... a2 {[%clk 0:01:15.3]} 0-1